fUST/lending_fUST_20240224
["ID","MTS","AMOUNT","RATE_DAILY","PERIOD"]
[315051931,1708786239100,-500.0,0.00019178,2]
[315051932,1708786239109,-500.0,0.00019178,2]
[315051933,1708786239118,-500.0,0.00019178,2]
[315051934,1708786239127,-500.0,0.00019178,2]
[315051935,1708786239137,-501.84072468,0.00019178,2]
[315051936,1708786239147,-862.79,0.00019178,2]
[315051937,1708786239158,-1101.9,0.00019178,2]
[315051938,1708786239167,-827.04,0.00019178,2]
[315051939,1708786239178,-389.05948452,0.00019178,2]
[315051940,1708786239188,-500.0,0.00019178,2]
[315051941,1708786239197,-500.0,0.00019178,2]
[315051942,1708786239207,-500.0,0.00019178,2]
[315051943,1708786239216,-501.85014942,0.00019178,2]
[315051944,1708786239225,-500.0,0.00019178,2]
[315051945,1708786239235,-504.23606148,0.00019178,2]
[315051946,1708786239244,-500.0,0.00019178,2]
[315051947,1708786239254,-500.0,0.00019178,2]
[315051948,1708786239263,-654.41,0.00019178,2]
[315051949,1708786239272,-557.04,0.00019178,2]
[315051950,1708786239282,-580.38,0.00019178,2]
[315051951,1708786239291,-307.42899316,0.00019178,2]
[315051952,1708786239300,-500.0,0.00019178,2]
[315051953,1708786239310,-762.58,0.00019178,2]
[315051954,1708786239319,-6670.04,0.00019178,2]
[315051955,1708786239329,-1307.46,0.00019178,2]
[315051956,1708786239338,-500.89136528,0.00019178,2]
[315051957,1708786239347,-7311.53,0.00019178,2]
[315051958,1708786239356,-500.0,0.00019178,2]
[315051959,1708786239365,-500.0,0.00019178,2]
[315051960,1708786239375,-500.0,0.00019178,2]
[315051961,1708786239383,-500.0,0.00019178,2]
[315051962,1708786239392,-500.0,0.00019178,2]
[315051963,1708786239401,-500.0,0.00019178,2]
[315051964,1708786239411,-500.92597094,0.00019178,2]
[315051965,1708786239420,-500.0,0.00019178,2]
[315051966,1708786239429,-500.0,0.00019178,2]
[315051967,1708786239441,-500.0,0.00019178,2]
[315051968,1708786239450,-500.0,0.00019178,2]
[315051969,1708786239458,-500.0,0.00019178,2]
[315051970,1708786239467,-500.0,0.00019178,2]
[315051971,1708786239477,-500.0,0.00019178,2]
[315051972,1708786239485,-500.0,0.00019178,2]
[315051973,1708786239494,-500.0,0.00019178,2]
[315051974,1708786239504,-261.12494144,0.00019178,2]
[315051975,1708786239513,-513.56,0.00019178,2]
[315051976,1708786239522,-524.85,0.00019178,2]
[315051977,1708786239532,-500.0,0.00019178,2]
[315051978,1708786239541,-500.0,0.00019178,2]
[315051979,1708786239550,-4298.83,0.00019178,2]
[315051980,1708786239559,-603.70505686,0.00019178,2]
[315051981,1708786239568,-500.0,0.00019178,2]
[315051982,1708786239577,-496.85137534,0.00019178,2]
[315051983,1708786239586,-500.0,0.00019178,2]
[315051984,1708786239595,-500.0,0.00019178,2]
[315051985,1708786239604,-500.0,0.00019178,2]
[315051986,1708786239613,-521.26886401,0.00019178,2]
[315051987,1708786239622,-501.13968867,0.00019178,2]
[315051988,1708786239631,-500.0,0.00019178,2]
[315051989,1708786239641,-1626.8,0.00019178,2]
[315051990,1708786239650,-731.02,0.00019178,2]
[315051991,1708786239662,-500.0,0.00019178,2]
[315051992,1708786239672,-500.0,0.00019178,2]
[315051993,1708786239681,-696.51,0.00019178,2]
[315051994,1708786239693,-500.0,0.00019178,2]
[315051995,1708786239702,-900.96,0.00019178,2]
[315051996,1708786239712,-500.0,0.00019178,2]
[315051997,1708786239721,-500.0,0.00019178,2]
[315051998,1708786239730,-500.0,0.00019178,2]
[315051999,1708786239740,-500.0,0.00019178,2]
[315052000,1708786239749,-3220.97,0.00019178,2]
[315052001,1708786239759,-500.35753757,0.00019178,2]
[315052002,1708786239768,-3939.77,0.00019178,2]
[315052003,1708786239778,-500.0,0.00019178,2]
[315052004,1708786239787,-500.0,0.00019178,2]
[315052005,1708786239797,-549.33868893,0.00019178,2]
[315052006,1708786239806,-917.28,0.00019178,2]
[315052007,1708786239815,-856.01,0.00019178,2]
[315052008,1708786239824,-166.666666,0.00019178,2]
[315052010,1708786240042,-154.87010445,0.00019303,2]
[315052011,1708786240052,-200.23,0.00019342,3]
[315052012,1708786240064,-600.74,0.00019342,3]
[315052013,1708786240074,-24715.72913923,0.00019352,2]
[315052014,1708786240084,-153.0,0.000194,2]
[315052015,1708786240094,-500.0,0.00019452,2]
[315052017,1708786240103,-500.0,0.00019452,2]
[315052018,1708786240112,-500.0,0.00019452,2]
[315052019,1708786240122,-500.0,0.00019452,2]
[315052020,1708786240131,-1119.45,0.00019452,2]
[315052021,1708786240142,-531.47039873,0.00019452,2]
[315052022,1708786240151,-1226.16,0.00019452,2]
[315052023,1708786240160,-500.0,0.00019452,2]
[315052024,1708786240170,-500.0,0.00019452,2]
[315052025,1708786240179,-500.0,0.00019452,2]
[315052026,1708786240190,-500.98655187,0.00019452,2]
[315052027,1708786240199,-1271.74,0.00019452,2]
[315052028,1708786240208,-500.0,0.00019452,2]
[315052029,1708786240218,-655.65,0.00019452,2]
[315052030,1708786240227,-441.02098798,0.00019452,2]
[315052031,1708786240236,-1406.85,0.00019452,2]
[315052032,1708786240245,-500.0,0.00019452,2]
[315052033,1708786240254,-500.0,0.00019452,2]
[315052034,1708786240264,-500.0,0.00019452,2]
[315052035,1708786240273,-862.79,0.00019452,2]
[315052036,1708786240282,-1101.9,0.00019452,2]
[315052037,1708786240291,-827.04,0.00019452,2]
[315052038,1708786240300,-500.0,0.00019452,2]
[315052039,1708786240309,-500.71233704,0.00019452,2]
[315052040,1708786240318,-500.0,0.00019452,2]
[315052041,1708786240327,-500.0,0.00019452,2]
[315052042,1708786240336,-654.41,0.00019452,2]
[315052043,1708786240345,-557.04,0.00019452,2]
[315052044,1708786240355,-580.38,0.00019452,2]
[315052045,1708786240364,-762.58,0.00019452,2]
[315052046,1708786240373,-6670.04,0.00019452,2]
[315052047,1708786240382,-1307.46,0.00019452,2]
[315052048,1708786240391,-7311.53,0.00019452,2]
[315052049,1708786240400,-500.0,0.00019452,2]
[315052050,1708786240409,-500.0,0.00019452,2]
[315052051,1708786240418,-500.0,0.00019452,2]
[315052052,1708786240427,-501.06102034,0.00019452,2]
[315052053,1708786240437,-500.0,0.00019452,2]
[315052054,1708786240446,-500.0,0.00019452,2]
[315052055,1708786240455,-502.18556509,0.00019452,2]
[315052056,1708786240464,-513.56,0.00019452,2]
[315052057,1708786240484,-524.85,0.00019452,2]
[315052058,1708786240495,-4298.83,0.00019452,2]
[315052059,1708786240504,-500.0,0.00019452,2]
[315052060,1708786240514,-500.0,0.00019452,2]
[315052061,1708786240523,-1626.8,0.00019452,2]
[315052062,1708786240533,-731.02,0.00019452,2]
[315052063,1708786240543,-151.25262955,0.00019452,2]
[315052064,1708786240711,-500.0,0.00019452,2]
[315052065,1708786240723,-696.51,0.00019452,2]
[315052066,1708786240733,-900.96,0.00019452,2]
[315052067,1708786240743,-500.0,0.00019452,2]
[315052068,1708786240752,-500.0,0.00019452,2]
[315052069,1708786240762,-500.0,0.00019452,2]
[315052070,1708786240771,-3220.97,0.00019452,2]
[315052071,1708786240781,-3939.77,0.00019452,2]
[315052072,1708786240791,-917.28,0.00019452,2]
[315052073,1708786240800,-856.01,0.00019452,2]
[315052074,1708786240810,-185.54660767,0.00019483,2]
[315052076,1708786240819,-185.54660767,0.00019485,2]
[315052077,1708786240828,-185.54660767,0.00019486,2]
[315052080,1708786240838,-787.72519876,0.00019499,2]
[315052081,1708786240848,-2548.22,0.000196,3]
[315052082,1708786240857,-166.666666,0.00019627,2]
[315052083,1708786240866,-500.0,0.00019726,2]
[315052084,1708786240876,-500.0,0.00019726,2]
[315052085,1708786240886,-500.0,0.00019726,2]
[315052086,1708786240895,-1119.45,0.00019726,2]
[315052088,1708786240904,-1226.16,0.00019726,2]
[315052089,1708786240913,-500.0,0.00019726,2]
[315052090,1708786240925,-500.0,0.00019726,2]
[315052091,1708786240934,-580.73195067,0.00019726,2]
[315052092,1708786240945,-1271.74,0.00019726,2]
[315052093,1708786240954,-655.65,0.00019726,2]
[315052094,1708786240963,-1406.85,0.00019726,2]
[315052095,1708786240972,-500.0,0.00019726,2]
[315052096,1708786240981,-862.79,0.00019726,2]
[315052097,1708786240990,-1101.9,0.00019726,2]
[315052098,1708786240999,-827.04,0.00019726,2]
[315052099,1708786241010,-529.3064742,0.00019726,2]
[315052100,1708786241019,-500.0,0.00019726,2]
[315052101,1708786241028,-654.41,0.00019726,2]
[315052102,1708786241038,-557.04,0.00019726,2]
[315052103,1708786241047,-580.38,0.00019726,2]
[315052104,1708786241057,-762.58,0.00019726,2]
[315052105,1708786241066,-6670.04,0.00019726,2]
[315052106,1708786241076,-1307.46,0.00019726,2]
[315052107,1708786241085,-7311.53,0.00019726,2]
[315052108,1708786241095,-500.0,0.00019726,2]
[315052109,1708786241105,-500.0,0.00019726,2]
[315052110,1708786241114,-500.0,0.00019726,2]
[315052111,1708786241124,-500.0,0.00019726,2]
[315052112,1708786241133,-513.56,0.00019726,2]
[315052113,1708786241142,-524.85,0.00019726,2]
[315052114,1708786241151,-4298.83,0.00019726,2]
[315052115,1708786241162,-500.0,0.00019726,2]
[315052116,1708786241171,-1626.8,0.00019726,2]
[315052117,1708786241180,-731.02,0.00019726,2]
[315052118,1708786241190,-500.0,0.00019726,2]
[315052119,1708786241198,-696.51,0.00019726,2]
[315052120,1708786241209,-900.96,0.00019726,2]
[315052121,1708786241218,-500.0,0.00019726,2]
[315052122,1708786241228,-500.0,0.00019726,2]
[315052123,1708786241240,-3220.97,0.00019726,2]
[315052124,1708786241249,-3939.77,0.00019726,2]
[315052125,1708786241259,-917.28,0.00019726,2]
[315052126,1708786241270,-856.01,0.00019726,2]
[315052127,1708786241281,-154.9866991,0.00019781,2]
[315052128,1708786241292,-2542.29238188,0.000199,2]
[315052129,1708786241301,-200.5294442,0.00019918,2]
[315052130,1708786241312,-200.5294442,0.00019918,2]
[315052131,1708786241322,-200.5294442,0.00019918,2]
[315052132,1708786241333,-200.5294442,0.00019918,2]
[315052133,1708786241343,-200.5294442,0.00019918,2]
[315052134,1708786241353,-200.5294442,0.00019918,2]
[315052135,1708786241362,-200.5294442,0.00019918,2]
[315052136,1708786241372,-200.5294442,0.00019918,2]
[315052137,1708786241381,-182.01718802,0.00019978,2]
[315052138,1708786241391,-588.19481873,0.00019979,2]
[315052139,1708786241401,-1405728.22280997,0.0002,2]
[315052183,1708786243639,-500.0,0.00019178,2]
[315052185,1708786243648,-767.0699997,0.00019178,2]
[315052186,1708786243660,-455.7800003,0.00019178,2]
[315052187,1708786243668,-1222.85,0.00019452,2]
[315052188,1708786243677,-1222.85,0.00019726,2]
[315052189,1708786243685,-132276.07319856,0.0002,2]
[315052190,1708786243705,-1383.93547105,0.0002,2]
[315052191,1708786243716,-1095.7986283,0.0002,2]
[315052192,1708786243727,-675.00579417,0.0002,2]
[315052193,1708786243737,-268.24199987,0.0002,2]
[315052194,1708786243753,-1027.33327999,0.0002,2]
[315052238,1708786244337,-358.63860035,0.0002,2]
[315052239,1708786244349,-2165.69190042,0.0002,2]
[315052240,1708786244361,-8775.54517132,0.0002,2]
[315052241,1708786244372,-843.94215077,0.0002,2]
[315052242,1708786244384,-14226.39008414,0.0002,2]
[315052282,1708786246818,-839.34028985,0.0001999,3]
[315052305,1708786477432,250.0,0.00018157,2]
[315052332,1708786749090,347.098415,0.00017991,2]
[315052339,1708786817334,154.87010445,0.00017185,2]
[315052356,1708787151422,814.2,0.000182,2]
[315052357,1708787158313,151.75644426,0.00018109,2]
[315052364,1708787335582,9873.8307564,0.00018035,2]
[315052368,1708787351115,2397.5439735,0.0001803,2]
[315052409,1708787431832,-1428.73370646,0.00018855,2]
[315052412,1708787431847,-162.19666751,0.00018855,2]
[315052413,1708787431856,-652.900589,0.00018856,2]
[315052415,1708787431866,-35.76274349,0.00018856,2]
[315052441,1708787437718,-245.52351306,0.00018856,2]
[315052443,1708787437728,-336.12682307,0.00018866,2]
[315052445,1708787437737,-704.04980982,0.00018873,2]
[315052447,1708787437746,-442.87870981,0.00018879,2]
[315052448,1708787437755,-437.98025857,0.000189,2]
[315052451,1708787437780,-837.5555392,0.000189,2]
[315052453,1708787437790,-2171.0,0.00019,2]
[315052454,1708787437799,-787.72519876,0.0001902,2]
[315052455,1708787437809,-988.73363018,0.00019057,2]
[315052457,1708787437819,-208.28568398,0.00019078,2]
[315052459,1708787437828,-300.0,0.00019167,2]
[315052461,1708787437837,-200.23,0.00019168,3]
[315052463,1708787437846,-920.40513939,0.00019177,2]
[315052465,1708787437855,-500.0,0.00019178,2]
[315052466,1708787437864,-500.0,0.00019178,2]
[315052467,1708787437873,-581.88330222,0.00019178,2]
[315052468,1708787437882,-500.0,0.00019178,2]
[315052470,1708787437891,-500.0,0.00019178,2]
[315052471,1708787437900,-500.0,0.00019178,2]
[315052473,1708787437909,-500.0,0.00019178,2]
[315052475,1708787437918,-500.0,0.00019178,2]
[315052477,1708787437930,-500.0,0.00019178,2]
[315052479,1708787437939,-500.0,0.00019178,2]
[315052480,1708787437948,-614.65414153,0.00019178,2]
[315052481,1708787437957,-500.0,0.00019178,2]
[315052482,1708787437966,-500.0,0.00019178,2]
[315052483,1708787437976,-500.0,0.00019178,2]
[315052484,1708787437985,-500.0,0.00019178,2]
[315052485,1708787437994,-500.0,0.00019178,2]
[315052486,1708787438003,-519.59807134,0.00019178,2]
[315052487,1708787438012,-472.99836782,0.00019178,2]
[315052488,1708787438022,-500.66481967,0.00019178,2]
[315052489,1708787438032,-510.83557812,0.00019178,2]
[315052490,1708787438041,-500.0,0.00019178,2]
[315052491,1708787438050,-212.46551129,0.00019178,2]
[315052492,1708787438060,-500.0,0.00019178,2]
[315052493,1708787438069,-500.0,0.00019178,2]
[315052494,1708787438078,-500.63179742,0.00019178,2]
[315052495,1708787438088,-500.0,0.00019178,2]
[315052496,1708787438097,-500.0,0.00019178,2]
[315052497,1708787438106,-500.0,0.00019178,2]
[315052498,1708787438115,-500.0,0.00019178,2]
[315052499,1708787438124,-500.55055743,0.00019178,2]
[315052500,1708787438134,-500.0,0.00019178,2]
[315052501,1708787438143,-500.98655187,0.00019178,2]
[315052502,1708787438152,-500.0,0.00019178,2]
[315052503,1708787438161,-500.0,0.00019178,2]
[315052504,1708787438170,-501.03228653,0.00019178,2]
[315052505,1708787438180,-500.0,0.00019178,2]
[315052506,1708787438190,-501.67496192,0.00019178,2]
[315052507,1708787438202,-500.0,0.00019178,2]
[315052508,1708787438212,-481.59226934,0.00019178,2]
[315052509,1708787438221,-562.2583264,0.00019178,2]
[315052510,1708787438230,-500.0,0.00019178,2]
[315052511,1708787438240,-500.0,0.00019178,2]
[315052512,1708787438249,-569.04783238,0.00019178,2]
[315052513,1708787438258,-1325.79,0.00019178,2]
[315052514,1708787438267,-500.0,0.00019178,2]
[315052515,1708787438278,-502.29163787,0.00019178,2]
[315052516,1708787438287,-389.05948452,0.00019178,2]
[315052517,1708787438296,-307.43320476,0.00019178,2]
[315052518,1708787438305,-500.0,0.00019178,2]
[315052519,1708787438314,-500.0,0.00019178,2]
[315052520,1708787438323,-500.0,0.00019178,2]
[315052521,1708787438333,-501.22711499,0.00019178,2]
[315052522,1708787438342,-858.36901513,0.00019178,2]
[315052523,1708787438351,-235.35725535,0.00019178,2]
[315052524,1708787438360,-500.49581509,0.00019178,2]
[315052525,1708787438369,-500.0,0.00019178,2]
[315052526,1708787438378,-647.71,0.00019178,2]
[315052527,1708787438388,-500.0,0.00019178,2]
[315052528,1708787438397,-500.0,0.00019178,2]
[315052529,1708787438406,-500.0,0.00019178,2]
[315052530,1708787438415,-500.0,0.00019178,2]
[315052531,1708787438539,-500.0,0.00019178,2]
[315052532,1708787438550,-500.0,0.00019178,2]
[315052533,1708787438559,-500.0,0.00019178,2]
[315052534,1708787438569,-500.0,0.00019178,2]
[315052535,1708787438579,-500.0,0.00019178,2]
[315052536,1708787438588,-500.0,0.00019178,2]
[315052537,1708787438598,-500.0,0.00019178,2]
[315052538,1708787438608,-450.66348455,0.00019178,2]
[315052539,1708787438618,-500.0,0.00019178,2]
[315052540,1708787438627,-500.0,0.00019178,2]
[315052541,1708787438636,-177.06876316,0.00019178,2]
[315052542,1708787438645,-695.54,0.00019178,2]
[315052543,1708787438654,-500.0,0.00019178,2]
[315052544,1708787438664,-500.0,0.00019178,2]
[315052545,1708787438673,-500.74749425,0.00019178,2]
[315052546,1708787438682,-478.9119605,0.00019178,2]
[315052547,1708787438691,-500.0,0.00019178,2]
[315052548,1708787438702,-500.0,0.00019178,2]
[315052549,1708787438711,-500.0,0.00019178,2]
[315052550,1708787438720,-500.0,0.00019178,2]
[315052551,1708787438730,-661.5,0.00019178,2]
[315052552,1708787438740,-500.0,0.00019178,2]
[315052553,1708787438749,-500.0,0.00019178,2]
[315052554,1708787438758,-500.0,0.00019178,2]
[315052555,1708787438768,-500.0,0.00019178,2]
[315052556,1708787438777,-500.75886757,0.00019178,2]
[315052557,1708787438787,-500.0,0.00019178,2]
[315052558,1708787438796,-500.0,0.00019178,2]
[315052559,1708787438806,-500.0,0.00019178,2]
[315052560,1708787438814,-500.0,0.00019178,2]
[315052561,1708787438824,-500.0,0.00019178,2]
[315052562,1708787438833,-500.0,0.00019178,2]
[315052563,1708787438842,-500.0,0.00019178,2]
[315052564,1708787438851,-500.0,0.00019178,2]
[315052565,1708787438860,-500.0,0.00019178,2]
[315052566,1708787438869,-500.0,0.00019178,2]
[315052567,1708787438878,-500.0,0.00019178,2]
[315052568,1708787438887,-500.0,0.00019178,2]
[315052569,1708787438896,-500.0,0.00019178,2]
[315052570,1708787438905,-500.0,0.00019178,2]
[315052571,1708787438914,-500.0,0.00019178,2]
[315052572,1708787438924,-500.0,0.00019178,2]
[315052573,1708787438932,-1065.6,0.00019178,2]
[315052574,1708787438942,-1065.6,0.00019178,2]
[315052575,1708787438951,-501.9076383,0.00019178,2]
[315052576,1708787438960,-500.75121153,0.00019178,2]
[315052577,1708787438969,-500.0,0.00019178,2]
[315052578,1708787438978,-500.0,0.00019178,2]
[315052579,1708787438987,-500.95156655,0.00019178,2]
[315052580,1708787438996,-500.0,0.00019178,2]
[315052581,1708787439005,-500.0,0.00019178,2]
[315052582,1708787439015,-500.0,0.00019178,2]
[315052583,1708787439024,-1557.09,0.00019178,2]
[315052584,1708787439033,-780.5,0.00019178,2]
[315052585,1708787439043,-613.85474645,0.00019178,2]
[315052586,1708787439052,-500.0,0.00019178,2]
[315052587,1708787439061,-500.0,0.00019178,2]
[315052588,1708787439070,-500.0,0.00019178,2]
[315052589,1708787439079,-500.0,0.00019178,2]
[315052590,1708787439088,-1692.69,0.00019178,2]
[315052591,1708787439097,-500.0,0.00019178,2]
[315052592,1708787439106,-501.80284884,0.00019178,2]
[315052593,1708787439115,-414.15222751,0.00019178,2]
[315052594,1708787439125,-500.0,0.00019178,2]
[315052595,1708787439134,-500.63186668,0.00019178,2]
[315052596,1708787439142,-249.69840039,0.00019178,2]
[315052597,1708787439152,-500.0,0.00019178,2]
[315052598,1708787439161,-5118.86,0.00019178,2]
[315052599,1708787439170,-983.3,0.00019178,2]
[315052600,1708787439179,-500.0,0.00019178,2]
[315052601,1708787439189,-501.62181897,0.00019178,2]
[315052602,1708787439202,-1369.58,0.00019178,2]
[315052603,1708787439212,-500.0,0.00019178,2]
[315052604,1708787439221,-500.0,0.00019178,2]
[315052605,1708787439230,-500.0,0.00019178,2]
[315052606,1708787439239,-1020.03,0.00019178,2]
[315052607,1708787439249,-500.0,0.00019178,2]
[315052608,1708787439258,-500.0,0.00019178,2]
[315052609,1708787439267,-500.0,0.00019178,2]
[315052610,1708787439277,-501.85014942,0.00019178,2]
[315052611,1708787439286,-500.0,0.00019178,2]
[315052612,1708787439296,-500.0,0.00019178,2]
[315052613,1708787439305,-888.05,0.00019178,2]
[315052614,1708787439314,-500.0,0.00019178,2]
[315052615,1708787439323,-500.0,0.00019178,2]
[315052616,1708787439332,-1112.4,0.00019178,2]
[315052617,1708787439341,-282.82142789,0.00019178,2]
[315052618,1708787439350,-500.89136528,0.00019178,2]
[315052619,1708787439359,-500.0,0.00019178,2]
[315052620,1708787439368,-500.0,0.00019178,2]
[315052621,1708787439377,-1466.55,0.00019178,2]
[315052622,1708787439386,-500.0,0.00019178,2]
[315052623,1708787439395,-500.0,0.00019178,2]
[315052624,1708787439404,-500.0,0.00019178,2]
[315052625,1708787439413,-500.92597094,0.00019178,2]
[315052626,1708787439423,-8209.41,0.00019178,2]
[315052627,1708787439431,-500.0,0.00019178,2]
[315052628,1708787439440,-1709.94,0.00019178,2]
[315052629,1708787439449,-8830.36,0.00019178,2]
[315052630,1708787439458,-500.0,0.00019178,2]
[315052631,1708787439467,-637.37,0.00019178,2]
[315052632,1708787439476,-593.7192902,0.00019178,2]
[315052633,1708787439486,-500.0,0.00019178,2]
[315052634,1708787439495,-500.0,0.00019178,2]
[315052635,1708787439505,-500.0,0.00019178,2]
[315052636,1708787439514,-500.0,0.00019178,2]
[315052637,1708787439523,-500.0,0.00019178,2]
[315052638,1708787439532,-500.0,0.00019178,2]
[315052639,1708787439542,-1076.48,0.00019178,2]
[315052640,1708787439551,-500.0,0.00019178,2]
[315052641,1708787439561,-500.0,0.00019178,2]
[315052642,1708787439570,-500.0,0.00019178,2]
[315052643,1708787439578,-500.0,0.00019178,2]
[315052644,1708787439587,-596.53827503,0.00019178,2]
[315052645,1708787439597,-607.72,0.00019178,2]
[315052646,1708787439606,-500.0,0.00019178,2]
[315052647,1708787439616,-500.0,0.00019178,2]
[315052648,1708787439625,-592.01,0.00019178,2]
[315052649,1708787439634,-500.0,0.00019178,2]
[315052650,1708787439643,-500.0,0.00019178,2]
[315052651,1708787439653,-572.03726957,0.00019178,2]
[315052652,1708787439662,-500.0,0.00019178,2]
[315052653,1708787439672,-500.0,0.00019178,2]
[315052654,1708787439681,-500.0,0.00019178,2]
[315052655,1708787439690,-500.0,0.00019178,2]
[315052656,1708787439700,-500.0,0.00019178,2]
[315052657,1708787439709,-797.19,0.00019178,2]
[315052658,1708787439718,-521.26886401,0.00019178,2]
[315052659,1708787439726,-500.0,0.00019178,2]
[315052660,1708787439735,-500.0,0.00019178,2]
[315052661,1708787439744,-500.0,0.00019178,2]
[315052662,1708787439753,-5236.28,0.00019178,2]
[315052663,1708787439763,-787.66,0.00019178,2]
[315052664,1708787439772,-528.23713786,0.00019178,2]
[315052665,1708787439781,-500.0,0.00019178,2]
[315052666,1708787439790,-500.0,0.00019178,2]
[315052667,1708787439799,-925.75,0.00019178,2]
[315052668,1708787439808,-500.0,0.00019178,2]
[315052669,1708787439817,-500.0,0.00019178,2]
[315052670,1708787439826,-501.38844066,0.00019178,2]
[315052671,1708787439835,-2193.95,0.00019178,2]
[315052672,1708787439844,-500.0,0.00019178,2]
[315052673,1708787439854,-3641.62,0.00019178,2]
[315052674,1708787439863,-233.419528,0.00019178,2]
[315052675,1708787439872,-166.666666,0.00019178,2]
[315052676,1708787439882,-2548.22,0.00019189,3]
[315052677,1708787439891,-208.28568397,0.00019284,2]
[315052678,1708787439901,-1065.6,0.00019351,2]
[315052679,1708787439910,-153.0,0.00019425,2]
[315052680,1708787439919,-200.5294442,0.00019425,2]
[315052681,1708787439930,-200.5294442,0.00019425,2]
[315052682,1708787439939,-200.5294442,0.00019425,2]
[315052683,1708787439948,-200.5294442,0.00019425,2]
[315052684,1708787439958,-200.5294442,0.00019425,2]
[315052685,1708787439967,-200.5294442,0.00019425,2]
[315052686,1708787439977,-200.5294442,0.00019425,2]
[315052687,1708787439986,-200.5294442,0.00019425,2]
[315052688,1708787439996,-200.5294442,0.00019425,2]
[315052689,1708787440005,-200.5294442,0.00019425,2]
[315052690,1708787440014,-1065.6,0.00019451,2]
[315052691,1708787440023,-501.88019527,0.00019452,2]
[315052692,1708787440033,-500.0,0.00019452,2]
[315052693,1708787440042,-500.0,0.00019452,2]
[315052694,1708787440051,-500.0,0.00019452,2]
[315052695,1708787440061,-500.0,0.00019452,2]
[315052696,1708787440070,-500.0,0.00019452,2]
[315052697,1708787440080,-500.0,0.00019452,2]
[315052698,1708787440089,-500.0,0.00019452,2]
[315052699,1708787440098,-500.0,0.00019452,2]
[315052700,1708787440108,-500.0,0.00019452,2]
[315052701,1708787440117,-500.0,0.00019452,2]
[315052702,1708787440127,-500.0,0.00019452,2]
[315052703,1708787440137,-500.0,0.00019452,2]
[315052704,1708787440146,-500.0,0.00019452,2]
[315052705,1708787440156,-500.0,0.00019452,2]
[315052706,1708787440166,-1325.79,0.00019452,2]
[315052707,1708787440176,-500.0,0.00019452,2]
[315052708,1708787440186,-500.0,0.00019452,2]
[315052709,1708787440199,-543.0771929,0.00019452,2]
[315052710,1708787440208,-500.0,0.00019452,2]
[315052711,1708787440217,-500.0,0.00019452,2]
[315052712,1708787440227,-500.0,0.00019452,2]
[315052713,1708787440236,-500.0,0.00019452,2]
[315052714,1708787440245,-500.0,0.00019452,2]
[315052715,1708787440255,-577.2719451,0.00019452,2]
[315052716,1708787440264,-500.0,0.00019452,2]
[315052717,1708787440276,-500.0,0.00019452,2]
[315052718,1708787440285,-500.0,0.00019452,2]
[315052719,1708787440294,-695.54,0.00019452,2]
[315052720,1708787440303,-500.0,0.00019452,2]
[315052721,1708787440312,-500.0,0.00019452,2]
[315052722,1708787440322,-661.5,0.00019452,2]
[315052723,1708787440331,-500.0,0.00019452,2]
[315052724,1708787440341,-500.0,0.00019452,2]
[315052725,1708787440351,-500.0,0.00019452,2]